{"text_format":"1","workbook":"xlsx","n_sheets":5,"sheets":["登録申請書","登録申請書 (記入例)","インポートシート","リストシート","データチェック"],"not_rendered":{"charts":0,"images":0,"macros":1,"external_links":0,"defined_names":2,"comments":0,"pivot_tables":0},"unopened":[],"bounds":{"document_bytes":16777216,"sheet_cells":100000,"rows_first":2000,"rows_last":500,"rows_between":2000,"halvings":0,"cell_chars":16384,"cell_head_chars":4096},"cells_cut":0,"cells_raw":0,"read":"whole","date_system":"1900"}

{"sheet":"登録申請書","index":0,"n_rows":35,"n_cols":13,"rows_kept":35,"cut":false,"hidden":false,"merged":[[0,0,0,1],[0,2,1,11],[3,1,3,2],[3,3,3,6],[3,8,3,9],[3,10,3,12],[7,3,7,6],[7,8,7,9],[7,10,7,12],[4,1,4,2],[4,3,4,6],[4,8,4,9],[5,1,5,2],[5,3,5,6],[5,8,5,9],[5,10,5,12],[4,10,4,11],[11,3,11,11],[14,3,14,11],[15,3,15,11],[20,4,20,11],[22,4,22,11],[15,1,15,2],[16,1,16,2],[16,3,16,12],[12,3,12,12],[13,1,13,2],[13,3,13,12],[34,1,34,12],[8,3,8,6],[8,8,8,9],[8,10,8,12],[11,1,11,2],[12,1,12,2],[32,1,32,12],[33,1,33,12],[31,1,31,12],[27,1,27,2],[28,1,28,2],[29,1,29,2],[29,3,29,12],[27,3,27,12],[24,1,24,2],[10,3,10,6],[10,10,10,12],[2,0,2,1],[2,2,2,3],[2,10,2,12],[8,1,8,2],[9,1,9,2],[9,3,9,6],[9,8,9,9],[9,10,9,12],[6,1,6,2],[6,3,6,6],[6,8,6,9],[6,10,6,12],[7,1,7,2],[10,1,10,2],[10,8,10,9],[30,5,30,7],[28,3,28,12],[14,1,14,2],[20,1,20,3],[21,1,21,3],[21,4,21,12],[25,1,25,2],[26,1,26,2],[26,6,26,7],[24,6,24,7],[25,6,25,7],[22,1,22,3],[23,1,23,3],[23,4,23,12],[17,1,17,2],[17,3,17,12]]}
["取扱注意",null,"「しずおかスポーツ人材バンク」指導者登録申請書"]
[]
["※認定証番号",null,null,null,null,null,null,null,null,"提出日"]
[1,"氏名",null,null,null,null,null,2,"ふりがな"]
[3,"性別 選択",null,null,null,null,null,4,"生年（西暦）"]
[5,"郵便番号",null,null,null,null,null,6,"都道府県 選択"]
[7,"住所（市町村）",null,null,null,null,null,8,"住所（町名番地）"]
[9,"住所（建物名）",null,null,null,null,null,10,"E-mailｱﾄﾞﾚｽ"]
[11,"自宅電話番号",null,null,null,null,null,12,"携帯電話番号"]
[13,"職業 選択",null,null,null,null,null,14,"勤務先"]
[15,"職業（自由記述）",null,null,null,null,null,16,"公認指導者番号"]
[17,"競技名 選択"]
[18,"競技歴"]
[19,"主な指導歴"]
[20,"所有指導資格 選択"]
[21,"その他資格 選択"]
[22,"その他資格\n（自由記述）"]
[23,"指導に関するＰＲ"]
[]
[null,"（部活動指導以外も含めて、該当する項目にレ点を記入してください。）"]
[24,"指導可能対象 選択"]
[25,"指導可能対象（自由記述）"]
[26,"指導可能区分 選択"]
[27,"指導可能区分（自由記述）"]
[28,"指導可能日時",null,"月曜","火曜","水曜","木曜",null,"金曜","土曜","日曜","祝日","毎日"]
[null," １全日 ２午前"]
[null," ３午後 ４夜間"]
[29,"指導可能地域 選択"]
[30,"指導可能地域\n（自由記述）"]
[31,"報酬の希望等 選択"]
[32,"報酬の希望等（謝金を希望する場合）",null,null,null,"1時間あたり",null,null,null,"円程度、交通費は実費"]
[33]
[null,"　　このバンク登録申請書における個人情報は、個人情報の保護に関する法律(平成15年法律第57号)"]
[null,"　に従い、厳正に取り扱うと共に、指導者紹介依頼者とのマッチングにおいて、（公財）静岡県体育"]
[null,"　協会の職員が使用するほか、個人が特定されない範囲の情報の一部をＨＰ上に掲載します。"]

{"sheet":"登録申請書 (記入例)","index":1,"n_rows":35,"n_cols":13,"rows_kept":35,"cut":false,"hidden":false,"merged":[[34,1,34,12],[29,1,29,2],[29,3,29,12],[30,5,30,7],[31,1,31,12],[32,1,32,12],[33,1,33,12],[26,1,26,2],[26,6,26,7],[27,1,27,2],[27,3,27,12],[28,1,28,2],[28,3,28,12],[23,1,23,3],[23,4,23,12],[24,1,24,2],[24,6,24,7],[25,1,25,2],[25,6,25,7],[20,1,20,3],[20,4,20,11],[21,1,21,3],[21,4,21,12],[22,1,22,3],[22,4,22,11],[15,1,15,2],[15,3,15,11],[16,1,16,2],[16,3,16,12],[17,1,17,2],[17,3,17,12],[12,1,12,2],[12,3,12,12],[13,1,13,2],[13,3,13,12],[14,1,14,2],[14,3,14,11],[10,1,10,2],[10,3,10,6],[10,8,10,9],[10,10,10,12],[11,1,11,2],[11,3,11,11],[8,1,8,2],[8,3,8,6],[8,8,8,9],[8,10,8,12],[9,1,9,2],[9,3,9,6],[9,8,9,9],[9,10,9,12],[6,1,6,2],[6,3,6,6],[6,8,6,9],[6,10,6,12],[7,1,7,2],[7,3,7,6],[7,8,7,9],[7,10,7,12],[4,1,4,2],[4,3,4,6],[4,8,4,9],[4,10,4,11],[5,1,5,2],[5,3,5,6],[5,8,5,9],[5,10,5,12],[3,1,3,2],[3,3,3,6],[3,8,3,9],[3,10,3,12],[0,0,0,1],[0,2,1,11],[2,0,2,1],[2,2,2,3],[2,10,2,12]]}
["取扱注意",null,"「しずおかスポーツ人材バンク」指導者登録申請書（記入例）"]
[]
[]
[1,"氏名",null,"静岡太郎",null,null,null,2,"ふりがな",null,"しずおかたろう"]
[3,"性別 選択",null,"男",null,null,null,4,"生年（西暦）",null,1931]
[5,"郵便番号",null,4260000,null,null,null,6,"都道府県 選択",null,"静岡県"]
[7,"住所（市町村）",null,"静岡市",null,null,null,8,"住所（町名番地）",null,"駿河区国吉田111"]
[9,"住所（建物名）",null,"〇〇ハウス 101",null,null,null,10,"E-mailｱﾄﾞﾚｽ",null,"info@ssj-bank.com"]
[11,"自宅電話番号",null,"054-265-6464",null,null,null,12,"携帯電話番号",null,"000-0000-0000"]
[13,"職業 選択",null,"会社員",null,null,null,14,"勤務先",null,"〇〇〇株式会社"]
[15,"職業（自由記述）",null,"スポーツトレーナー",null,null,null,16,"公認指導者番号",null,"S0000000"]
[17,"競技名 選択",null,"陸上競技、飛込、シンクロナイズドスイミング、テニス"]
[18,"競技歴",null,"中学・高校サッカー6年"]
[19,"主な指導歴",null,"〇〇少年団で〇年"]
[20,"所有指導資格 選択",null,"〈日本体育協会公認〉競技別教師、〈日本体育協会公認〉ジュニアスポーツ指導員"]
[21,"その他資格 選択",null,"あん摩マッサージ指圧師、救急法救急員"]
[22,"その他資格\n（自由記述）",null,"普通自動車免許"]
[23,"指導に関するＰＲ",null,"がんばります"]
[]
[null,"（部活動指導以外も含めて、該当する項目にレ点を記入してください。）"]
[24,"指導可能対象",null,null,"中学生男子、高校生男子、一般男子"]
[25,"指導可能対象（自由記述）"]
[26,"指導可能区分",null,null,"レジャー・レクリエーション、学校部活動"]
[27,"指導可能区分（自由記述）"]
[28,"指導可能日時",null,"月曜","火曜","水曜","木曜",null,"金曜","土曜","日曜","祝日","毎日"]
[null," １全日 ２午前"]
[null," ３午後 ４夜間"]
[29,"指導可能地域 選択",null,"居住地を含む隣接市町"]
[30,"指導可能地域\n（自由記述）",null,"藤枝、焼津、島田も可能です"]
[31,"報酬の希望等 選択",null,"謝金希望または依頼者と交渉"]
[32,"報酬の希望等（謝金を希望する場合）",null,null,null,"1時間あたり",null,null,1000,"円程度、交通費は実費"]
[33]
[null,"　　このバンク登録申請書における個人情報は、個人情報の保護に関する法律(平成15年法律第57号)"]
[null,"　に従い、厳正に取り扱うと共に、指導者紹介依頼者とのマッチングにおいて、（公財）静岡県体育"]
[null,"　協会の職員が使用するほか、個人が特定されない範囲の情報の一部をＨＰ上に掲載します。"]

{"sheet":"インポートシート","index":2,"n_rows":2,"n_cols":48,"rows_kept":2,"cut":false,"hidden":false,"merged":[]}
["ID","認定番号","提出日","氏名","フリガナ","性別","生年(西暦)","郵便番号","都道府県","住所１（市・区・町）","住所２（それ以降）","住所３（アパート等）","E-mailｱﾄﾞﾚｽ","自宅電話番号","携帯番号","携帯mailアドレス","職業","勤務先","職業その他（記載）","主要競技名","その他競技名","競技歴","主な指導歴","所有指導資格","その他の資格","その他の資格（記載）","資格（記載）","指導可能対象","指導可能区分","月曜","火曜","水曜","木曜","金曜","土曜","日曜","祝日","毎日","新指導可能地域","地域（記載）","報酬","報酬（記載）","指導に関するPR","公認指導者番号","公認指導者有効","情報同意","報酬TO","登録認定要件"]
[null,null,null,{"$f":"登録申請書!D4","v":0},{"$f":"登録申請書!K4","v":0},{"$f":"登録申請書!D5","v":0},null,{"$f":"登録申請書!D6","v":0},{"$f":"登録申請書!K6","v":0},{"$f":"登録申請書!D7","v":0},{"$f":"登録申請書!K7","v":0},{"$f":"登録申請書!D8","v":0},{"$f":"登録申請書!K8","v":0},{"$f":"登録申請書!D9","v":0},{"$f":"登録申請書!K9","v":0},null,{"$f":"登録申請書!D10","v":0},{"$f":"登録申請書!D11","v":0},{"$f":"登録申請書!D11","v":0},null,null,{"$f":"登録申請書!D13","v":0},{"$f":"登録申請書!D14","v":0},null,null,{"$f":"登録申請書!D17","v":0},null,null,null,{"$f":"データチェック!H4","v":""},{"$f":"データチェック!H5","v":"全日;"},{"$f":"データチェック!H6","v":""},{"$f":"データチェック!H7","v":""},{"$f":"データチェック!H8","v":""},{"$f":"データチェック!H9","v":""},{"$f":"データチェック!H10","v":""},{"$f":"データチェック!H11","v":""},{"$f":"データチェック!H12","v":""},{"$f":"登録申請書!D28","v":0},{"$f":"登録申請書!D29","v":0},{"$f":"登録申請書!D30","v":0},null,{"$f":"登録申請書!D18","v":0},{"$f":"登録申請書!K11","v":0},null,{"$f":"データチェック!H14","v":""},{"$f":"登録申請書!I31","v":0}]

{"sheet":"リストシート","index":3,"n_rows":94,"n_cols":23,"rows_kept":94,"cut":false,"hidden":false,"merged":[]}
["性別","生年","ID","職業","ID","主要競技","ID","対象","ID","区分","ID","資格","ID","時間帯","可能地域","報酬","その他資格","ID","情報同意",null,"都道府県",null,"職業"]
[]
["男",1925,1,"会社員",1,"陸上競技",1,"幼児",1,"競技スポーツ",1,"〈日本体育協会公認〉競技別指導員",1,"全日","居住地","謝金希望または依頼者と交渉","あん摩マッサージ指圧師",1,"同意する",null,"北海道",null,"会社員"]
["女",1926,2,"自営業",2,"競泳",2,"児童",2,"生涯スポーツ",2,"〈日本体育協会公認〉競技別上級指導員",2,"午前","居住地を含む隣接市町","ボランティア","医師",2,null,null,"青森県",null,"自営業"]
[null,1927,3,"専門職",3,"飛込",3,"中学生男子",3,"レジャー・レクリエーション",3,"〈日本体育協会公認〉競技別コーチ",3,"午後","その他",null,"ウォーキング指導員",3,null,null,"岩手県",null,"専門職"]
[null,1928,4,"公務員",4,"水球",4,"中学生女子",4,"講習会講師",4,"〈日本体育協会公認〉競技別上級コーチ",4,"夜間",null,null,"栄養士",4,null,null,"宮城県",null,"公務員"]
[null,1929,5,"学生",5,"シンクロナイズドスイミング",5,"高校生男子",5,"学校部活動",5,"〈日本体育協会公認〉競技別教師",5,"午前,午後",null,null,"看護師",5,null,null,"秋田県",null,"学生"]
[null,1930,6,"主婦(夫)",6,"オープンウォータースイミング",6,"高校生女子",6,"審判員",6,"〈日本体育協会公認〉競技別上級教師",6,"午後,夜間",null,null,"管理栄養士",6,null,null,"山形県",null,"主婦（夫）"]
[null,1931,7,"ﾊﾟｰﾄ・ｱﾙﾊﾞｲﾄ",7,"テニス",7,"一般男子",7,"学校体育",7,"〈日本体育協会公認〉ジュニアスポーツ指導員",7,"午前,夜間",null,null,"救急救命士",7,null,null,"福島県",null,"パート・アルバイト"]
[null,1932,8,"無職",8,"ソフトテニス",8,"一般女子",8,"スポーツ医・科学",8,"〈日本体育協会公認〉スポーツプログラマー",8,null,null,null,"救急法救急員",8,null,null,"茨城県",null,"無職"]
[null,1933,9,"その他",9,"バドミントン",9,"高齢者男子",9,"スポーツマネージャー",9,"〈日本体育協会公認〉スポーツドクター",9,null,null,null,"きゅう師",9,null,null,"栃木県"]
[null,1934,10,null,null,"体操",10,"高齢者女子",10,"その他",10,"〈日本体育協会公認〉スポーツデンティスト",10,null,null,null,"教員免許",10,null,null,"群馬県"]
[null,1935,11,null,null,"新体操",11,"障害者男子",11,null,null,"〈日本体育協会公認〉アスレティックトレーナー",11,null,null,null,"競技審判資格",11,null,null,"埼玉県"]
[null,1936,12,null,null,"トランポリン",12,"障害者女子",12,null,null,"〈日本体育協会公認〉スポーツ栄養士",12,null,null,null,"健康運動実践指導者",12,null,null,"千葉県"]
[null,1937,13,null,null,"卓球",13,null,null,null,null,"〈日本体育協会公認〉アシスタントマネジャー",13,null,null,null,"健康運動指導士",13,null,null,"東京都"]
[null,1938,14,null,null,"バレーボール",14,null,null,null,null,"〈日本体育協会公認〉クラブマネジャー",14,null,null,null,"健康スポーツ医",14,null,null,"神奈川県"]
[null,1939,15,null,null,"バスケットボール",15,null,null,null,null,"〈日本体育協会公認〉スポーツリーダー(スポーツ少年団認定員)",15,null,null,null,"高齢者体力つくり支援士",15,null,null,"新潟県"]
[null,1940,16,null,null,"サッカー",16,null,null,null,null,"スポーツ推進員",16,null,null,null,"柔道整復師",16,null,null,"富山県"]
[null,1941,17,null,null,"ハンドボール",17,null,null,null,null,"民間スポーツインストラクター",17,null,null,null,"障害者スポーツ指導員",17,null,null,"石川県"]
[null,1942,18,null,null,"軟式野球",18,null,null,null,null,"競技別指導資格保持者",18,null,null,null,"障害者スポーツ指導員スポーツコーチ",18,null,null,"福井県"]
[null,1943,19,null,null,"硬式野球",19,null,null,null,null,"競技別段位資格所持者",19,null,null,null,"スポーツ系大学教授等",19,null,null,"山梨県"]
[null,1944,20,null,null,"ソフトボール",20,null,null,null,null,null,null,null,null,null,"スポーツトレーナー",20,null,null,"長野県"]
[null,1945,21,null,null,"ラグビーフットボール",21,null,null,null,null,null,null,null,null,null,"トレーニング指導士",21,null,null,"岐阜県"]
[null,1946,22,null,null,"剣道",22,null,null,null,null,null,null,null,null,null,"はり師",22,null,null,"静岡県"]
[null,1947,23,null,null,"柔道",23,null,null,null,null,null,null,null,null,null,"ファーマシスト",23,null,null,"愛知県"]
[null,1948,24,null,null,"相撲",24,null,null,null,null,null,null,null,null,null,"フィットネストレーナー",24,null,null,"三重県"]
[null,1949,25,null,null,"弓道",25,null,null,null,null,null,null,null,null,null,"理学療法士",25,null,null,"滋賀県"]
[null,1950,26,null,null,"空手道",26,null,null,null,null,null,null,null,null,null,"臨床心理士",26,null,null,"京都府"]
[null,1951,27,null,null,"登山",27,null,null,null,null,null,null,null,null,null,"その他",27,null,null,"大阪府"]
[null,1952,28,null,null,"ボート",28,null,null,null,null,null,null,null,null,null,null,null,null,null,"兵庫県"]
[null,1953,29,null,null,"カヌー",29,null,null,null,null,null,null,null,null,null,null,null,null,null,"奈良県"]
[null,1954,30,null,null,"ヨット",30,null,null,null,null,null,null,null,null,null,null,null,null,null,"和歌山県"]
[null,1955,31,null,null,"ウエイトリフティング",31,null,null,null,null,null,null,null,null,null,null,null,null,null,"鳥取県"]
[null,1956,32,null,null,"フェンシング",32,null,null,null,null,null,null,null,null,null,null,null,null,null,"島根県"]
[null,1957,33,null,null,"レスリング",33,null,null,null,null,null,null,null,null,null,null,null,null,null,"岡山県"]
[null,1958,34,null,null,"なぎなた",34,null,null,null,null,null,null,null,null,null,null,null,null,null,"広島県"]
[null,1959,35,null,null,"自転車",35,null,null,null,null,null,null,null,null,null,null,null,null,null,"山口県"]
[null,1960,36,null,null,"ホッケー",36,null,null,null,null,null,null,null,null,null,null,null,null,null,"徳島県"]
[null,1961,37,null,null,"ボクシング",37,null,null,null,null,null,null,null,null,null,null,null,null,null,"香川県"]
[null,1962,38,null,null,"アーチェリー",38,null,null,null,null,null,null,null,null,null,null,null,null,null,"愛媛県"]
[null,1963,39,null,null,"スケート",39,null,null,null,null,null,null,null,null,null,null,null,null,null,"高知県"]
[null,1964,40,null,null,"スキー",40,null,null,null,null,null,null,null,null,null,null,null,null,null,"福岡県"]
[null,1965,41,null,null,"アイスホッケー",41,null,null,null,null,null,null,null,null,null,null,null,null,null,"佐賀県"]
[null,1966,42,null,null,"少林寺拳法",42,null,null,null,null,null,null,null,null,null,null,null,null,null,"長崎県"]
[null,1967,43,null,null,"馬術",43,null,null,null,null,null,null,null,null,null,null,null,null,null,"熊本県"]
[null,1968,44,null,null,"ボウリング",44,null,null,null,null,null,null,null,null,null,null,null,null,null,"大分県"]
[null,1969,45,null,null,"ゴルフ",45,null,null,null,null,null,null,null,null,null,null,null,null,null,"宮崎県"]
[null,1970,46,null,null,"クレー射撃",46,null,null,null,null,null,null,null,null,null,null,null,null,null,"鹿児島県"]
[null,1971,47,null,null,"ライフル射撃",47,null,null,null,null,null,null,null,null,null,null,null,null,null,"沖縄県"]
[null,1972,48,null,null,"銃剣道",48]
[null,1973,49,null,null,"トライアスロン",49]
[null,1974,50,null,null,"綱引",50]
[null,1975,51,null,null,"ゲートボール",51]
[null,1976,52,null,null,"パワーリフティング",52]
[null,1977,53,null,null,"グランウンド・ゴルフ",53]
[null,1978,54,null,null,"武術太極拳",54]
[null,1979,55,null,null,"ダンススポーツ",55]
[null,1980,56,null,null,"バウンドテニス",56]
[null,1981,57,null,null,"キックボクシング",57]
[null,1982,58,null,null,"ヨガ",58]
[null,1983,59]
[null,1984,60]
[null,1985,61]
[null,1986,62]
[null,1987,63]
[null,1988,64]
[null,1989,65]
[null,1990,66]
[null,1991,67]
[null,1992,68]
[null,1993,69]
[null,1994,70]
[null,1995,71]
[null,1996,72]
[null,1997,73]
[null,1998,74]
[null,1999,75]
[null,2000,76]
[null,2001,77]
[null,2002,78]
[null,2003,79]
[null,2004,80]
[null,2005,81]
[null,2006,82]
[null,2007,83]
[null,2008,84]
[null,2009,85]
[null,2010,86]
[null,2011,87]
[null,2012,88]
[null,2013,89]
[null,2014,90]
[null,2015,91]
[null,2016,92]

{"sheet":"データチェック","index":4,"n_rows":15,"n_cols":8,"rows_kept":15,"cut":false,"hidden":false,"merged":[[0,2,0,5]]}
[null,null,"チェックボックスの判定",null,null,null,null,"インポートシートへの反映"]
[]
["指導可能日時",null,"全日","午前","午後","夜間"]
[null,"月",false,false,false,false,null,{"$f":"IF(C4=TRUE,\"全日;\",\"\")&IF(D4=TRUE,\"午前;\",\"\")&IF(E4=TRUE,\"午後;\",\"\")&IF(F4=TRUE,\"夜間;\",\"\")","v":""}]
[null,"火",true,false,false,false,null,{"$f":"IF(C5=TRUE,\"全日;\",\"\")&IF(D5=TRUE,\"午前;\",\"\")&IF(E5=TRUE,\"午後;\",\"\")&IF(F5=TRUE,\"夜間;\",\"\")","v":"全日;"}]
[null,"水",false,false,false,false,null,{"$f":"IF(C6=TRUE,\"全日;\",\"\")&IF(D6=TRUE,\"午前;\",\"\")&IF(E6=TRUE,\"午後;\",\"\")&IF(F6=TRUE,\"夜間;\",\"\")","v":""}]
[null,"木",false,false,false,false,null,""]
[null,"金",false,false,false,false,null,""]
[null,"土",false,false,false,false,null,""]
[null,"日",false,false,false,false,null,""]
[null,"祝",false,false,false,false,null,""]
[null,"毎日",false,false,false,false,null,""]
[]
["情報公開","同意する",false,null,null,null,null,{"$f":"IF(C14=TRUE,\"同意する\",\"\")","v":""}]
[null,"同意しない",false]